{"text_format":"1","workbook":"xlsx","n_sheets":6,"sheets":["Instructions","Crane Wire Record","Spare Wires for Cranes","Miscellaneous Wires","Additional wire","VesselNameCode"],"not_rendered":{"charts":0,"images":5,"macros":1,"external_links":1,"defined_names":26,"comments":4,"pivot_tables":0},"unopened":[],"bounds":{"document_bytes":16777216,"sheet_cells":100000,"rows_first":2000,"rows_last":500,"rows_between":2000,"halvings":0,"cell_chars":16384,"cell_head_chars":4096},"cells_cut":0,"cells_raw":0,"read":"whole","date_system":"1900"}

{"sheet":"Instructions","index":0,"n_rows":36,"n_cols":13,"rows_kept":36,"cut":false,"hidden":false,"merged":[[17,2,17,12],[18,2,18,12],[34,1,34,12],[0,2,0,11],[2,0,2,12],[8,1,8,12],[9,1,9,12],[0,0,0,1],[5,1,5,3],[3,0,3,12],[22,1,22,5],[24,2,24,12],[23,2,23,12],[21,2,21,12],[12,2,12,12],[13,2,13,12],[35,1,35,12],[19,1,19,12],[7,0,7,2],[29,1,29,12],[30,1,30,12],[31,1,31,12],[32,1,32,12],[33,1,33,12],[25,1,25,12],[26,1,26,12],[27,1,27,12],[28,1,28,12],[10,1,10,12],[20,2,20,12],[11,1,11,7],[16,1,16,7]]}
[{"$error":"#VALUE!"},null,"HEALTH, SAFETY, ENVIRONMENT AND QUALITY MANAGEMENT SYSTEM\n\nWIRES INFORMATION RECORD\n\nReporting Form Manual",null,null,null,null,null,null,null,null,null,"File No : 2.3.22\nDate : 23-Apr-2025\nRev : 10.0\nApp By : DPA"]
[]
["TO BE SUBMITTED EVERY DEPARTURE WHEN CRANE WAS IN USE FOR LOADING OR DISCHARGING OPERATION,"]
["AND EVERYTIME THERE IS ANY WIRE REMOVED OR ADDED"]
[]
["Vessel:","IVS ISOGO",null,null,null,null,null,null,null,null,null,"Date:","2025-10-31"]
[]
["Instructions"]
[1,"The report should include all wires used for lifting, access equipment, lifeboat falls, etc."]
[2,"Condition G = Good for continuous use. F = Fair, showing signs of wear, to be replaced next quarter."]
[3," FOR SUPRAMAX VESSELS:"]
[null,"FOR SUPRAMAX VESSELS ON DMSA RUN "]
[null,"3a","Hoisting Wire: Max. 600 hours (for other makers) and 3000 hrs (for Seldis wires)"]
[null,"3b","Luffing Wire: Max 1400 hours(for other wires) and  5 years for Seldis wire."]
[null,null,"If  vessel is on DMSA run & it is estimated the hoiting wire will be  600 hours (for other makers) OR 3000 hours (for Seldis) old "]
[null,null,"during discharge, the wire will be changed prior to working cargo at that port. This will be done on passage."]
[null,"FOR  SUPRAMAX VESSELS NOT ON DMSA RUN "]
[null,"3c","Hoisting Wire:  To be replaced every 36 months, or if poor condition demands early renewal, unless written instructions /confirmation received from company."]
[null,"3d","Luffing Wire: To be replaced every 36 months, or if poor condition demands early renewal, unless written instructions /confirmation received from company."]
[4,"FOR OTHER VESSELS ( NON LOGGERS):"]
[null,"4a","Hoisting Wire:  To be replaced every 36 months, or if poor condition demands early renewal, unless written instructions /confirmation received from company."]
[null,"4b","Luffing Wire: To be replaced every 36 months, or if poor condition demands early renewal, unless written instructions /confirmation received from company."]
[5,"FOR LOGGERS "]
[null,"5a"," Hoisting wires to be replaced after 6 consecutive log voyages, or if  4 log voyages in total are performed within 18 months, then they also to be replaced, or if poor condition demands early renewal. If vessel did not carry logs , to be treated as non logger."]
[null,"5b","Luffing Wire: To be replaced every 36 months, or if poor condition demands early renewal, unless written instructions /confirmation received from company."]
[6,"Certificates of all wires (including spares) to be maintained on board"]
[7,"Record of wire running hours to be maintained on board (Determined by hour meter)"]
[8,"Date of receipt of wire to be recorded on the certificate."]
[9,"All wire to be tagged at one end to indicate certificate number (using metal plate, washer or other weather proof means"]
[10,"Refer to Cargo manual chapter 22 for further details (inspection , discard criteria etc) "]
[11,"You can only input on unprotected cells as the worksheets are protected."]
[12,"You must select your vessel name in order to get the correct calculation of running hours."]
[13,"On sheet Crane Wire Record & Miscellaneous Wires, some cells will turn to red when due or overdue, and will turn to yellow before due, otherwise green."]
[14,"Whenever any of the cells on rows with wires turns to yellow, please inform your ship manager and make a requisition for a new spare."]
[null,"NB: When a wire is damaged, the cause is to be identified in the remarks column. A separate report is to detail reasons the wire was replaced, "]
[null,"i.e., broken wires/strands, excessive wear/corrosion etc. and remedial action taken to prevent recurrence."]

{"sheet":"Crane Wire Record","index":1,"n_rows":21,"n_cols":17,"rows_kept":21,"cut":false,"hidden":false,"merged":[[0,1,0,15],[1,2,1,14],[19,15,19,16],[20,15,20,16],[17,12,17,14],[18,12,18,14],[19,12,19,14],[20,12,20,14],[17,15,17,16],[18,15,18,16],[4,0,4,2]]}
[null,{"$f":"Instructions!$C$1","v":"HEALTH, SAFETY, ENVIRONMENT AND QUALITY MANAGEMENT SYSTEM\n\nWIRES INFORMATION RECORD\n\nReporting Form Manual"},null,null,null,null,null,null,null,null,null,null,null,null,null,null,{"$f":"Instructions!M1","v":"File No : 2.3.22\nDate : 23-Apr-2025\nRev : 10.0\nApp By : DPA"}]
[]
["CRANE WIRE RECORD"]
[]
["SUPRAMAX? YES or NO",null,null,{"$f":"IF(Vessel=\"Please select your vessel\",\"Please select your vessel from Instructions sheet\", IF(VLOOKUP(Vessel,VesselNameCode[#All],3,FALSE)=\"Handysize\",\"NO\",\"YES\"))","v":"YES"},null,null,null,null,null,null,null,null,null,null,null,"VESSEL :",{"$f":"Vessel","v":"IVS ISOGO"}]
[]
["CRANE","LENGTH (M)"," ACTUAL MBL (KN)","DIA (mm)","ALLOWABLE DIAMETER (MM) (UP TO 7% OF NOMINAL DIAMETER)","PRESENT DIAMETER (mm)","CERT. NO","MAKER","FERRULE OR THIMBLE MARKING","ATTACHMENT","DATE RECEIVED","DATE PUT IN USE","RUNNING HOURS OF CRANE WHEN WIRE PUT IN USE","RUNNING HOURS OF CRANE PRESENT READING","TOTAL RUNNING HOURS OF WIRE","CONDITION","REMARKS"]
["NO. 1 CRANE HOISTING",249,780.8,33.5,{"$f":"D8-(7/100*(D8))","v":31.155000000000001},33.5,"QDO 2402155/1","China","'Thimble No36.''Z\"lay","Double-click any cell on this column to insert a PDF attachment","2025-01-09","2025-10-20",6239,6334,{"$f":"N8-M8","v":95},null,"GOOD"]
["NO. 1 CRANE LUFFING",119,547,28,{"$f":"D9-(7/100*(D9))","v":26.04},27.7,"AZ/RK/24/04/42264","China","Thimble No32","Double-click any cell on this column to insert a PDF attachment","2024-04-25","2024-04-29",5133.2,6334,1200.8000000000002,null,"GOOD"]
["NO. 2 CRANE HOISTING",249,780.8,33.5,31.155000000000001,33,"VTU 2310009/10","Other","'Thimble No36.''Z\"lay","Double-click any cell on this column to insert a PDF attachment","2024-04-25","2024-07-08",4289.2,5097,807.80000000000018,null,"GOOD"]
["NO. 2 CRANE LUFFING",119,585,28,26.04,27.9,"BY-724-24-A1","China","Thimble No32","Double-click any cell on this column to insert a PDF attachment","2021-09-15","2025-01-11",4875,5097,222,null,"GOOD"]
["NO. 3 CRANE HOISTING",249,802,33.5,31.155000000000001,33.299999999999997,"QDO 2402155/1 ","China","'Thimble No36.''Z\"lay","Double-click any cell on this column to insert a PDF attachment","2025-01-09","2025-01-13",4949,5305,356,null,"GOOD"]
["NO. 3 CRANE LUFFING",119,585,28,26.04,27.8,"BY-1799-A-22","China","Thimble No32","Double-click any cell on this column to insert a PDF attachment","2023-02-21","2024-01-07",4949,5305,356,null,"GOOD"]
["NO. 4 CRANE HOISTING",249,810.8,33.5,31.155000000000001,33.5,"QDO 2400299/8","China","'Thimble No36.''Z\"lay","Double-click any cell on this column to insert a PDF attachment","2025-01-08","2025-10-24",5906,5959,53,null,"GOOD"]
["NO. 4 CRANE LUFFING",119,585,28,26.04,27.8,"BY-1799-A-22","China","Thimble No32","Double-click any cell on this column to insert a PDF attachment","2023-05-09","2024-12-30",5538,5959,421,null,"GOOD"]
[]
["GRAB TENSION WIRE","LENGTH (M)"," ACTUAL MBL (KN)","DIA (mm)","CERT. NO","FERRULE OR THIMBLE MARKING","ATTACHMENT","DATE RECEIVED","DATE PUT IN USE","CONDITION (GOOD, FAIR)","REMARKS"]
["NO. 1 GRAB TENSION WIRE",null,null,null,null,null,"Double-click any cell on this column to insert a PDF attachment"]
["NO. 2 GRAB TENSION WIRE",null,null,null,null,null,"Double-click any cell on this column to insert a PDF attachment"]
["NO. 3 GRAB TENSION WIRE",null,null,null,null,null,"Double-click any cell on this column to insert a PDF attachment"]
["NO. 4 GRAB TENSION WIRE",null,null,null,null,null,"Double-click any cell on this column to insert a PDF attachment"]

{"sheet":"Spare Wires for Cranes","index":2,"n_rows":20,"n_cols":10,"rows_kept":20,"cut":false,"hidden":false,"merged":[[0,1,0,8],[4,0,4,9],[5,0,5,9],[2,1,2,4]]}
[null,{"$f":"Instructions!$C$1","v":"HEALTH, SAFETY, ENVIRONMENT AND QUALITY MANAGEMENT SYSTEM\n\nWIRES INFORMATION RECORD\n\nReporting Form Manual"},null,null,null,null,null,null,null,{"$f":"Instructions!M1","v":"File No : 2.3.22\nDate : 23-Apr-2025\nRev : 10.0\nApp By : DPA"}]
[]
["VESSEL :",{"$f":"Instructions!B6","v":"IVS ISOGO"},null,null,null,null,null,null,"SUPRAMAX :",{"$f":"'Crane Wire Record'!D5","v":"YES"}]
[]
["SPARE WIRE FOR CRANES (Supramax vessels shall maintain four HOISTING wire , four GRAB TENSION wire and two LUFFING wire at all times.)"]
["All other vessels shall maintain two HOISTING wire , two GRAB TENSION wire and two LUFFING wire at all times)"]
[]
["SPARE WIRE","LENGTH (M)","ACTUAL MBL (KN)","DIA (mm)","CERT. NO","FERRULE OR THIMBLE MARKING","ATTACHMENT","RECEIVED DATE","RECEIVED PORT","REMARKS"]
["HOISTING WIRE SPARE 1 ","249","780.8","33.5","VTU 2310009/06","'Thimble No36.''Z\"lay","Double-click any cell on this column to insert a PDF attachment","2024-04-25","MINA SAQR","GOOD"]
["HOISTING WIRE SPARE 2",null,null,null,null,null,"Double-click any cell on this column to insert a PDF attachment"]
["HOISTING WIRE SPARE 3",null,null,null,null,null,"Double-click any cell on this column to insert a PDF attachment"]
["HOISTING WIRE SPARE 4",null,null,null,null,{"$f":"IF(C12=\"\",\"\",\"Please insert certificate number\")","v":""},"Double-click any cell on this column to insert a PDF attachment",{"$f":"IF(F12=\"\",\"\",\"Please attached certificate here\")","v":""}]
["LUFFING WIRE SPARE 1","119","585","28","BY-724-24-A1","Thimble No32","Double-click any cell on this column to insert a PDF attachment","2025-01-08","MINA SAQR","GOOD"]
["LUFFING WIRE SPARE 2","119","585","28","BY-724-24-A1","Thimble No32","Double-click any cell on this column to insert a PDF attachment","2025-01-08","MINA SAQR","GOOD"]
["LUFFING WIRE SPARE 3",null,null,null,null,"","Double-click any cell on this column to insert a PDF attachment",""]
["LUFFING WIRE SPARE 4",null,null,null,null,"","Double-click any cell on this column to insert a PDF attachment",""]
["GRAB TENSION WIRE SPARE 1",null,null,null,null,"","Double-click any cell on this column to insert a PDF attachment",""]
["GRAB TENSION WIRE SPARE 2",null,null,null,null,"","Double-click any cell on this column to insert a PDF attachment",""]
["GRAB TENSION WIRE SPARE 3",null,null,null,null,"","Double-click any cell on this column to insert a PDF attachment",""]
["GRAB TENSION WIRE SPARE 4",null,null,null,null,"","Double-click any cell on this column to insert a PDF attachment",""]

{"sheet":"Miscellaneous Wires","index":3,"n_rows":37,"n_cols":13,"rows_kept":37,"cut":false,"hidden":false,"merged":[[0,1,0,11],[2,1,2,4]]}
[null,{"$f":"Instructions!$C$1","v":"HEALTH, SAFETY, ENVIRONMENT AND QUALITY MANAGEMENT SYSTEM\n\nWIRES INFORMATION RECORD\n\nReporting Form Manual"},null,null,null,null,null,null,null,null,null,null,{"$f":"Instructions!M1","v":"File No : 2.3.22\nDate : 23-Apr-2025\nRev : 10.0\nApp By : DPA"}]
[]
["VESSEL :",{"$f":"Instructions!B6","v":"IVS ISOGO"},null,null,null,null,null,null,null,null,null,"SUPRAMAX :",{"$f":"'Crane Wire Record'!D5","v":"YES"}]
[]
["MISCELLANEOUS WIRE"]
["LOCATION","LENGTH (M)","ACTUAL MBL (KN)","DIA (mm)","ALLOWABLE DIAMETER\n(MM) (UP TO 7% OF NOMINAL DIAMETER)","PRESENT DIAMETER\n(mm)","FERRULE OR THIMBLE MARKING","CERT. NO","ATTACHMENT","RECEIVED DATE","DATE PUT IN USE","CONDITION (GOOD, FAIR)","REMARKS"]
["PROVISION CRANE (P)\nrenewal every 30 months",90,69,"10",{"$f":"D7-(7/100*(D7))","v":9.3000000000000007},10,"Thimble SF45(A-12) JIS- B 2802","BUS2301165/3","Double-click any cell on this column to insert a PDF attachment","2024-04-21","2024-05-22","GOOD","REPLACE: 22-NOV-2026"]
["PROVISION CRANE (S)\nrenewal every 30 months",113,44.7,"8",{"$f":"D8-(7/100*(D8))","v":7.4399999999999995},8,"Thimble SF45(A-12) JIS- B 2802","BUS2301165/1","Double-click any cell on this column to insert a PDF attachment","2024-04-21","2024-05-22","GOOD","REPLACE: 22-NOV-2026"]
["E/R GANTRY CRANE\nrenewal every 60 months",44,56.5,"10",9.3000000000000007,10,"No thimber",{"$f":"IF(B9=\"\",\"\",\"Please insert certificate\")","v":"Please insert certificate"},"Double-click any cell on this column to insert a PDF attachment",null,"2024-06-03","GOOD","REPLACE: 03-DEC-2026"]
["FO HOSE DAVIT \nrenewal every 30 months",25,41.1,"8",7.4399999999999995,8,"Thimble eye one end","BUS2251162/1","Double-click any cell on this column to insert a PDF attachment","2024-04-21","2024-11-07","GOOD","REPLACE: 07-MAY-2027"]
["LIFE BOAT / FREEFALL BOAT FALL\nrenewal every 60 months",65,243,"20",18.600000000000001,20,"WTBL","NT13P00990-02","Double-click any cell on this column to insert a PDF attachment","2023-02-21","2023-02-26","GOOD","REPLACE: 26-FEB-2028"]
["RESCUE BOAT FALLS\nrenewal every 60 months",35,165,"16",14.879999999999999,16,"WTBL","NT23PPS00241-52","Double-click any cell on this column to insert a PDF attachment","2023-02-21","2024-10-16","GOOD","REPLACE: 16-OCT-2029"]
["PILOT ASSIST/\nCOMBINATION LADDER (P)\nrenewal every 30 months",50,93,"12",11.16,12,"Thimble JIS2802-A12","EN 10204-3.1","Double-click any cell on this column to insert a PDF attachment","2023-02-21","2024-10-07","GOOD","REPLACE: 07-APR-2027"]
["PILOT ASSIST /\nCOMBINATION LADDER (S)\nrenewal every 30 months",50,93,"12",11.16,12,"D4687","EN 10204-3.1","Double-click any cell on this column to insert a PDF attachment","2024-04-24","2025-10-23","GOOD","REPLACE: 22-APR-2028"]
["ACCOMMODATION LADDER (P)\nrenewal every 30 months",60,93,"12",11.16,12,"Thimble JIS2802-A12","NT23PPS01200-33","Double-click any cell on this column to insert a PDF attachment","2024-04-21","2024-10-07","GOOD","REPLACE: 07-APR-2027"]
["ACCOMMODATION LADDER (S)\nrenewal every 30 months",60,93,"12",11.16,12,"Thimble JIS2802-A12","NT23PPS01200-33","Double-click any cell on this column to insert a PDF attachment","2024-04-21","2024-10-07","GOOD","REPLACE: 07-APR-2027"]
["FIRE WIRE(1)",null,null,null,0,null,null,{"$f":"IF(B17=\"\",\"\",\"Please insert certificate\")","v":""},"Double-click any cell on this column to insert a PDF attachment"]
["FIRE WIRE(2)",null,null,null,0,null,null,"","Double-click any cell on this column to insert a PDF attachment"]
[null,null,null,null,0,null,null,"","Double-click any cell on this column to insert a PDF attachment"]
[]
["MISCELLANEOUS SPARE WIRE"]
[]
["SPARE WIRE","LENGTH (M)","ACTUAL MBL (KN)","DIA (mm)","CERT. NO","FERRULE OR THIMBLE MARKING","ATTACHMENT","RECEIVED DATE","RECEIVED PORT","REMARKS"]
["PROVISION CRANE (P)",90,69.2,10,"270635/4","D4685","Double-click any cell on this column to insert a PDF attachment","2024-04-24","DUBAI-UAE","Good"]
["PROVISION CRANE (S)",113,44.7,8,"270635/3","D4684","Double-click any cell on this column to insert a PDF attachment","2024-04-24","DUBAI-UAE","Good"]
["E/R GANTRY CRANE",44,56.5,10,"NT22PPS000011_30","No thimble","Double-click any cell on this column to insert a PDF attachment","03-Oct-2024","SHIDAO - CHINA","Good"]
["FO HOSE DAVIT",25,41.1,8,"TS131022-18","NO  Marking","Double-click any cell on this column to insert a PDF attachment","2022-10-19","Rechards Bay, S.A","Good"]
["LIFE BOAT / FREEFALL BOAT FALL",65,"Unknow",20,"Not Found","NO  Marking","Double-click any cell on this column to insert a PDF attachment","03-Oct-2024","SHIDAO - CHINA","Good"]
["RESCUE BOAT FALLS ",30,180,16,"270635/5","D4686","Double-click any cell on this column to insert a PDF attachment","2024-04-24","DUBAI-UAE","Good"]
["PILOT ASSIST / COMBINATION LADDER ( P)",50,80,12,"Not Found","NO  Marking","Double-click any cell on this column to insert a PDF attachment","Unknow","Unknow","Good"]
["PILOT ASSIST / COMBINATION LADDER ( S)",null,null,null,null,null,"Double-click any cell on this column to insert a PDF attachment"]
["ACCOMMODATION LADDER (P)",60,80,12,"270635/7","D4688","Double-click any cell on this column to insert a PDF attachment","2024-04-24","DUBAI-UAE","Good"]
["ACCOMMODATION LADDER (S)",65,93,12,"EN 10204-3.1",12385,"Double-click any cell on this column to insert a PDF attachment","2023-09-11","DUNKIRB","Good"]
["FIRE WIRE(1)",null,null,null,{"$f":"IF(B34=\"\",\"\",\"Please insert certificate number\")","v":""},null,"Double-click any cell on this column to insert a PDF attachment"]
["FIRE WIRE(2)",null,null,null,"",null,"Double-click any cell on this column to insert a PDF attachment"]
["TOWING WIRE",null,null,null,"",null,"Double-click any cell on this column to insert a PDF attachment"]
["TOWING WIRE",null,null,null,"",null,"Double-click any cell on this column to insert a PDF attachment"]

{"sheet":"Additional wire","index":4,"n_rows":14,"n_cols":10,"rows_kept":14,"cut":false,"hidden":false,"merged":[]}
["SPARE WIRE","LENGTH (M)","ACTUAL MBL (KN)","DIA (mm)","CERT. NO","FERRULE OR THIMBLE MARKING","ATTACHMENT","RECEIVED DATE","RECEIVED PORT","REMARKS"]
["BUNKER DAVIT FALL",25,"Unknow",8,"Not Found","NO  Marking","Double-click any cell on this column to insert a PDF attachment","Unknow","Unknow","2PCS\nGood"]
["RESCUE BOAT FALLS ",30,"Unknow",16,"Not Found","NO  Marking","Double-click any cell on this column to insert a PDF attachment","Unknow","Unknow","Good"]
["PILOT ASSIST/ CONBIUNATION LADDER",50,"Unknow",12,"Not Found","NO  Marking","Double-click any cell on this column to insert a PDF attachment","Unknow","Unknow","Good"]
["STABILE GRAB WIRE",60,"Unknow",8,"Not Found","NO  Marking","Double-click any cell on this column to insert a PDF attachment","Unknow","Unknow","4 PCS\nGood"]
[null,null,null,null,null,null,"Double-click any cell on this column to insert a PDF attachment"]
[null,null,null,null,null,null,"Double-click any cell on this column to insert a PDF attachment"]
[null,null,null,null,null,null,"Double-click any cell on this column to insert a PDF attachment"]
[null,null,null,null,null,null,"Double-click any cell on this column to insert a PDF attachment"]
[null,null,null,null,null,null,"Double-click any cell on this column to insert a PDF attachment"]
[null,null,null,null,null,null,"Double-click any cell on this column to insert a PDF attachment"]
[null,null,null,null,null,null,"Double-click any cell on this column to insert a PDF attachment"]
[null,null,null,null,null,null,"Double-click any cell on this column to insert a PDF attachment"]
[null,null,null,null,null,null,"Double-click any cell on this column to insert a PDF attachment"]

{"sheet":"VesselNameCode","index":5,"n_rows":29,"n_cols":3,"rows_kept":29,"cut":false,"hidden":true,"merged":[]}
["NAME","CODE","SIZE"]
["ID PIONEER","ASR","Handysize"]
["IVS ATSUGI","GASG","Supramax"]
["IVS GLENEAGLES","GLE","Supramax"]
["IVS MERLIN","GSDS","Handysize"]
["IVS DUNES","IDU","Supramax"]
["IVS ISOGO","IIS","Supramax"]
["IVS KESTREL","IKE","Handysize"]
["IVS KINGLET ","KIN","Handysize"]
["IVS KNOT ","KNO","Handysize"]
["IVS MAGPIE","MGP","Handysize"]
["IVS NORTH BERWICK","NBW","Supramax"]
["IVS OKUDOGO","OKU","Supramax"]
["IVS PHINDA","PHD","Handysize"]
["IVS PHOENIX","PHX","Supramax"]
["IVS PRESTWICK","PRE","Supramax"]
["IVS SPARROWHAWK","SPW","Handysize"]
["IVS SUNBIRD","SUN","Handysize"]
["IVS SWINLEY FOREST","SWF","Supramax"]
["IVS TEMBE","TBE","Handysize"]
["IVS THANDA","THA","Handysize"]
["IVS WENTWORTH","WWH","Supramax"]
["CANNY CAROLINE","XCAC","Handysize"]
["MAGIQUE MARLINE","XDAL","Handysize"]
["NIMBLE NICKY","XFBU","Handysize"]
["REGAL RACHEL","XFDU","Handysize"]
["HANDY HEIDI","XHDH","Handysize"]
["SUNNY SANDRA","XSNS","Handysize"]
["Please select your vessel"]